[Event "CCT Julius Baer-D3 2024"]
[Site "Online"]
[Date "2024.09.27"]
[Round "1.3"]
[White "Alekseenko, Kirill"]
[Black "Duda, Jan-Krzysztof"]
[Result "1/2-1/2"]
[ECO "C50"]
[WhiteElo "2626"]
[BlackElo "2744"]
[Annotator "TA"]
[PlyCount "121"]
[EventDate "2024.09.25"]
[EventType "swiss"]
[EventCountry "NET"]
[SourceTitle "playchess.com"]
[Source "ChessBase"]
[SourceQuality "1"]
[TimeControl "600+2"]

{[%evp 25,121,20,33,26,20,18,13,20,25,16,46,10,7,9,7,0,10,9,71,72,74,84,74,71,77,82,74,34,43,24,26,14,19,11,13,10,12,14,20,17,12,14,23,8,8,8,8,0,0,0,0,0,0,0,0,0,0,0,0,0,0,0,0,0,0,0,0,0,0,0,0,0,0,0,0,0,0,0,0,0,0,0,0,0,0,0,0,0,0,0,0,0,0,0,0,0,0,0]} 1. e4 {[%emt 0:00:04]} e5 {[%emt 0:00:05]} 2. Nf3 {[%emt 0:00:02]} Nc6 {[%emt 0:00:00]} 3. Bc4 {[%emt 0:00:03]} Bc5 {[%emt 0:00:02]} 4. d3 {[%emt 0:00:02]} Nf6 {[%emt 0:00:02]} 5. Nc3 {[%emt 0:00:01]} d6 {[%emt 0:00:13]} 6. Na4 {[%emt 0:00:04]} Bb6 {[%emt 0:00:03] C50: Hungarian Defence and Giuoco Pianissimo.} 7. a3 {[%emt 0:00:07]} O-O {[%emt 0:00:17]} 8. O-O {[%emt 0:00:05]} h6 {[%emt 0:00:24]} 9. h3 {[%emt 0:00:02]} Be6 {[%emt 0:00:22]} 10. Bxe6 {[%emt 0:00:14]} fxe6 {[%emt 0:00:00]} 11. c3 {[%emt 0:00:23] 11.b4 is setting a new trend.} Qd7 {[%emt 0:00:05]} 12. b4 {[%emt 0:00:10]} Rf7 {[%emt 0:00:18]} 13. Nxb6 {[%emt 0:00:20]} axb6 {[%emt 0:00:04]} 14. a4 {[%emt 0:00:12]} Ne7 {[%emt 0:00:04]} 15. Be3 {[%emt 0:00:47]} Ng6 {[%emt 0:00:05]} 16. a5 $146 {[%emt 0:01:13]} ({Predecessor:} 16. Nh2 Raf8 17. Ra2 d5 18. exd5 exd5 19. a5 d4 20. Bd2 e4 21. axb6 dxc3 22. Bxc3 {½-½ Fuentes,A (1986)-Unhold,V (2174) Villa Ballester op 73rd 2024 (3)}) 16... bxa5 {[%emt 0:00:17]} 17. bxa5 {[%emt 0:00:20]} d5 {[%emt 0:00:37]} 18. exd5 {[%emt 0:00:35]} exd5 {[%emt 0:00:07]} 19. d4 {[%emt 0:00:09]} exd4 {[%emt 0:00:42]} 20. Qxd4 {[%emt 0:00:01]} Qc6 {[%emt 0:00:15]} 21. Rfd1 {[%emt 0:00:29]} Re8 {[%emt 0:00:21]} (21... Qa6 $11 {remains equal.}) 22. Qd3 {[%emt 0:00:23]} Ne5 {[%emt 0:01:07]} 23. Nxe5 {[%emt 0:00:01]} Rxe5 {[%emt 0:00:00]} 24. a6 {[%emt 0:00:19]} bxa6 {[%emt 0:00:26]} 25. Rxa6 {[%emt 0:00:00]} Qd7 {[%emt 0:00:02]} 26. Bxh6 {[%emt 0:00:42]} gxh6 {[%emt 0:01:01]} 27. Qg6+ {[%emt 0:00:03]} Rg7 {[%emt 0:00:01]} 28. Qxf6 {[%emt 0:00:05]} Reg5 {[%emt 0:00:01]} 29. Qxh6 {[%emt 0:01:16]} Rxg2+ {[%emt 0:00:04]} 30. Kh1 {[%emt 0:00:02]} Qf5 {[%emt 0:00:33]} 31. Ra8+ {[%emt 0:01:00]} Kf7 {[%emt 0:00:03]} 32. Qe3 $1 {[%emt 0:00:06]} (32. Qh8 $2 {is a self mate.} Rh2+ (32... Qxf2 33. Rf8+ Ke6 34. Rxf2 Rxf2 35. Qxg7 Rf4 36. Qg6+ Ke7 37. Qg5+ Rf6 38. Re1+ Kf7 39. Qh5+ Kg8 40. Re8+ Kg7 41. Re7+) (32... Rg1+ {gets mated.} 33. Rxg1 Qf3+ 34. Kh2 Qxf2+ 35. Kh1 Rxg1#) 33. Kxh2 Qxf2+ 34. Kh1 Qg2#) 32... Qe4 $1 {[%emt 0:02:24]} 33. Qxe4 {[%emt 0:00:11]} dxe4 {[%emt 0:00:00]} 34. Rd7+ {[%emt 0:00:20]} Ke6 {[%emt 0:00:02]} 35. Rxg7 {[%emt 0:00:02]} Rxg7 {[%emt 0:00:00]} 36. Re8+ {[%emt 0:00:27]} Kd5 {[%emt 0:00:06]} 37. Kh2 {[%emt 0:00:25]} Rf7 {[%emt 0:00:28]} 38. Kg2 {[%emt 0:00:01]} Rg7+ {[%emt 0:00:01]} 39. Kf1 {[%emt 0:00:03]} Rh7 {[%emt 0:00:03]} 40. Kg2 {[%emt 0:00:17]} Rg7+ {[%emt 0:00:01]} 41. Kh2 {[%emt 0:00:04]} Rf7 {[%emt 0:00:02]} 42. Kg3 {[%emt 0:00:00]} Rf3+ {[%emt 0:00:19]} 43. Kg2 {[%emt 0:00:02]} Rxc3 {[%emt 0:00:01]} 44. h4 {[%emt 0:00:00]} Rf3 {[%emt 0:00:03]} 45. h5 {[%emt 0:00:13]} Rf5 {[%emt 0:00:01]} 46. h6 {[%emt 0:00:02]} Rg5+ {[%emt 0:00:07]} 47. Kf1 {[%emt 0:00:02]} Rh5 {[%emt 0:00:01]} 48. Rh8 {[%emt 0:00:01]} Kc4 {[%emt 0:00:08]} 49. Ke2 {[%emt 0:00:04]} Rh3 {[%emt 0:00:01]} 50. h7 {[%emt 0:00:03]} c5 {[%emt 0:00:02]} 51. Kd2 {[%emt 0:00:00]} Rd3+ {[%emt 0:00:02]} 52. Ke1 {[%emt 0:00:01]} Rh3 {[%emt 0:00:03]} 53. Ke2 {[%emt 0:00:03]} Kc3 {[%emt 0:00:05]} 54. Rc8 {[%emt 0:00:05]} Rxh7 {[%emt 0:00:01]} 55. Rxc5+ {[%emt 0:00:01]} Kd4 {[%emt 0:00:01]} 56. Ra5 {[%emt 0:00:02]} Rc7 {[%emt 0:00:01]} 57. Ra4+ {[%emt 0:00:01]} Rc4 {[%emt 0:00:00]} 58. Rxc4+ {[%emt 0:00:01]} Kxc4 {[%emt 0:00:01]} 59. Ke3 {[%emt 0:00:02]} Kd5 {[%emt 0:00:00]} 60. f3 {[%emt 0:00:00]} exf3 {[%emt 0:00:01]} 61. Kxf3 {[%emt 0:00:00]} 1/2-1/2

[Event "CCT Julius Baer-D3 2024"]
[Site "Online"]
[Date "2024.09.27"]
[Round "1.3"]
[White "Santos Latasa, Jaime"]
[Black "Sargissian, Gabriel"]
[Result "1-0"]
[ECO "C55"]
[WhiteElo "2624"]
[BlackElo "2646"]
[Annotator "TA"]
[PlyCount "119"]
[EventDate "2024.09.25"]
[EventType "swiss"]
[EventCountry "NET"]
[SourceTitle "playchess.com"]
[Source "ChessBase"]
[SourceQuality "1"]
[TimeControl "600+2"]

{[%evp 55,119,120,116,116,112,83,91,8,35,0,18,21,28,0,0,0,7,0,0,0,0,0,4,0,0,0,0,0,0,-14,0,-3,-10,-52,25,-7,17,21,21,5,25,0,143,133,143,20,51,0,82,121,148,127,320,362,362,371,371,355,357,353,352,176,340,314,243,168]} 1. e4 {[%emt 0:00:03]} e5 {[%emt 0:00:03]} 2. Nf3 {[%emt 0:00:01]} Nc6 {[%emt 0:00:01]} 3. Bc4 {[%emt 0:00:01]} Nf6 {[%emt 0:00:01]} 4. d3 {[%emt 0:00:00]} Be7 {[%emt 0:00:00]} 5. O-O {[%emt 0:00:02]} O-O {[%emt 0:00:03]} 6. Nc3 {[%emt 0:00:04]} d6 {[%emt 0:00:01]} 7. a4 $1 {[%emt 0:00:03][%mdl 4] is recently more successful than 7.h3. C55: Two Knights: 4 d3, 4 d4 exd4 5 e5 and Max Lange Attack.} Bg4 {[%emt 0:00:04]} 8. h3 {[%emt 0:00:02]} Bh5 {[%emt 0:00:02]} 9. Nd5 {[%emt 0:00:02]} Nxd5 {[%emt 0:00:03]} 10. Bxd5 {[%emt 0:00:02]} Qc8 {[%emt 0:00:01]} 11. Be3 {[%emt 0:00:08]} Kh8 {[%emt 0:00:12]} 12. g4 {[%emt 0:00:02]} Bg6 {[%emt 0:00:01]} 13. a5 {[%emt 0:00:08]} a6 {[%emt 0:00:13]} 14. c3 $5 $146 {[%emt 0:00:01][%mdl 8] New and interesting.} ({Predecessor:} 14. Nh2 Nd8 15. f4 exf4 16. Bxf4 c6 17. Bb3 d5 18. exd5 cxd5 19. Be3 Bc5 20. d4 {0-1 Duda,J (2740)-Aronian,L (2775) Miami FTX Crypto Cup rapid 2022 (2.1)}) 14... Nd8 {[%emt 0:00:05]} 15. Kh2 {[%emt 0:00:19]} c6 {[%emt 0:00:21]} 16. Ba2 {[%emt 0:00:02]} Ne6 {[%emt 0:00:26]} 17. Qd2 {[%emt 0:00:08]} Qc7 {[%emt 0:00:49]} 18. Bxe6 {[%emt 0:00:50]} fxe6 {[%emt 0:00:03]} 19. Qe2 {[%emt 0:00:01]} Qd8 {[%emt 0:01:01]} 20. c4 {[%emt 0:00:08]} c5 {[%emt 0:01:00]} 21. Kg1 {[%emt 0:00:29]} b5 {[%emt 0:00:21]} 22. axb6 {[%emt 0:00:03]} Qxb6 {[%emt 0:00:02]} 23. b4 {[%emt 0:00:04]} Qc7 {[%emt 0:00:12]} 24. bxc5 {[%emt 0:00:03]} dxc5 {[%emt 0:00:19]} 25. Ra3 {[%emt 0:00:27]} a5 {[%emt 0:00:06]} 26. Rfa1 {[%emt 0:00:03]} Be8 {[%emt 0:00:02]} 27. Nd2 {[%emt 0:00:02]} a4 {[%emt 0:01:34]} 28. Nb1 {[%emt 0:00:04]} Bc6 {[%emt 0:00:28] [#]} 29. Nc3 $1 {[%emt 0:00:02]} Ra5 {[%emt 0:00:01]} (29... Qd7 30. Qc2) 30. Bd2 {[%emt 0:00:19]} (30. Nxa4 $2 Rfa8 31. Qd1 Qa7 $19) 30... Rfa8 {[%emt 0:00:13]} 31. Qd1 {[%emt 0:00:16]} (31. Nb5 $1 $16 {[%cal Rb5c7]} Rxb5 32. cxb5 Bxb5 33. Rc3) 31... Qd7 {[%emt 0:00:08]} 32. Qc2 {[%emt 0:00:36]} R5a6 {[%emt 0:00:05]} 33. Be3 {[%emt 0:00:30]} h6 {[%emt 0:00:05]} 34. Kg2 {[%emt 0:00:02]} Kh7 {[%emt 0:00:01]} 35. Rb1 {[%emt 0:00:11]} R6a7 {[%emt 0:00:39]} 36. Nb5 {[%emt 0:00:14]} Ra5 {[%emt 0:00:07]} 37. Nc3 {[%emt 0:00:33]} R5a7 {[%emt 0:00:06]} 38. Rba1 {[%emt 0:00:01]} Qe8 {[%emt 0:00:04]} 39. Ne2 {[%emt 0:00:03]} Rb7 {[%emt 0:00:05]} 40. Bd2 {[%emt 0:00:10]} Rab8 {[%emt 0:00:07]} 41. Bc3 {[%emt 0:00:01]} Bd6 {[%emt 0:00:04]} 42. Ng1 {[%emt 0:00:02]} Qf8 {[%emt 0:00:19]} 43. Nf3 {[%emt 0:00:10]} Qf6 {[%emt 0:00:01]} 44. Qe2 {[%emt 0:00:01]} Rb3 {[%emt 0:00:05]} ({Black should play} 44... Rf8 $15) 45. Nd2 {[%emt 0:00:05]} Rxa3 {[%emt 0:00:04]} 46. Rxa3 {[%emt 0:00:02]} Qf4 {[%emt 0:00:02]} 47. Qe3 {[%emt 0:00:07]} Bd7 {[%emt 0:00:21]} 48. Nf3 {[%emt 0:00:15]} Rb3 {[%emt 0:00:04] [#]} (48... Bc6 $11 {keeps the balance.}) 49. Rxb3 $1 $16 {[%emt 0:00:06]} axb3 {[%emt 0:00:00]} 50. Nd2 {[%emt 0:00:01]} (50. Qe1 $16) 50... Ba4 $11 {[%emt 0:00:07]} 51. Nf3 {[%emt 0:00:41]} ({Better is} 51. Qe2 $14) 51... Qxe3 {[%emt 0:00:36]} (51... Bd7 $11 {remains equal.}) 52. fxe3 $16 {[%emt 0:00:02]} Bc7 {[%emt 0:00:01]} 53. Kf2 {[%emt 0:00:08]} Ba5 $2 {[%emt 0:00:06]} (53... h5 $16 54. Ba1 (54. Bxe5 $2 Bxe5 55. Ng5+ Kg8 $19) (54. gxh5 Kh6 $16) 54... Kg8 (54... hxg4 55. hxg4 Bd8 56. Ke1 $16)) 54. Bxa5 $18 {[%emt 0:00:13]} b2 {[%emt 0:00:01]} 55. Nd2 $1 {[%emt 0:00:01]} (55. Nxe5 $2 {loses.} b1=Q (55... b1=R 56. d4 $14) 56. Bc7 Bc2 $19) 55... Bc2 {[%emt 0:00:01]} 56. Ke2 {[%emt 0:00:00]} b1=Q {[%emt 0:00:02]} 57. Nxb1 {[%emt 0:00:02]} Bxb1 {[%emt 0:00:01]} 58. Bc3 {[%emt 0:00:00]} Kg6 $2 {[%emt 0:00:03]} (58... g6 59. Kd2 (59. Bxe5 Bc2 $18) 59... Kg8) 59. Bxe5 $18 {[%emt 0:00:02]} Kf7 {[%emt 0:00:01]} 60. Bd6 {[%emt 0:00:01]} 1-0

[Event "CCT Julius Baer-D3 2024"]
[Site "Online"]
[Date "2024.09.27"]
[Round "1.3"]
[White "Rud_Makarian"]
[Black "Chopper"]
[Result "1-0"]
[ECO "D38"]
[WhiteElo "2616"]
[BlackElo "2612"]
[Annotator "ChessBase"]
[PlyCount "113"]
[EventDate "2024.09.25"]
[EventType "swiss"]
[EventCountry "NET"]
[SourceTitle "playchess.com"]
[Source "ChessBase"]
[SourceQuality "1"]
[TimeControl "600+2"]

1. d4 {[%emt 0:00:02]} Nf6 {[%emt 0:00:03]} 2. c4 {[%emt 0:00:03]} e6 {[%emt 0:00:01]} 3. Nf3 {[%emt 0:00:02]} d5 {[%emt 0:00:01]} 4. Nc3 {[%emt 0:00:00]} Bb4 {[%emt 0:00:01]} 5. Qa4+ {[%emt 0:00:05]} Nc6 {[%emt 0:00:02]} 6. Bd2 {[%emt 0:00:01]} O-O {[%emt 0:00:47]} 7. a3 {[%emt 0:00:01]} Bd6 {[%emt 0:00:45]} 8. c5 {[%emt 0:00:33]} Be7 {[%emt 0:00:03]} 9. Bf4 {[%emt 0:00:29]} Nh5 {[%emt 0:02:07]} 10. e3 {[%emt 0:00:49]} Bd7 {[%emt 0:00:41]} 11. Bb5 {[%emt 0:00:08]} a6 {[%emt 0:00:08]} 12. Bxc6 {[%emt 0:00:02]} Bxc6 {[%emt 0:00:00]} 13. Qc2 {[%emt 0:00:01]} b6 {[%emt 0:00:26]} 14. cxb6 {[%emt 0:00:12]} cxb6 {[%emt 0:00:01]} 15. O-O {[%emt 0:00:05]} Nxf4 {[%emt 0:00:15]} 16. exf4 {[%emt 0:00:02]} Bd6 {[%emt 0:00:19]} 17. Ne5 {[%emt 0:00:09]} Be8 {[%emt 0:00:05]} 18. Qd2 {[%emt 0:00:10]} Rc8 {[%emt 0:00:04]} 19. Rfe1 {[%emt 0:00:04]} f6 {[%emt 0:00:14]} 20. Nf3 {[%emt 0:02:20]} Bf7 {[%emt 0:00:02]} 21. Qd3 {[%emt 0:00:39]} Bxf4 {[%emt 0:00:41]} 22. Qxa6 {[%emt 0:00:02]} Rc6 {[%emt 0:00:11]} 23. g3 {[%emt 0:00:19]} Bh6 {[%emt 0:00:55]} 24. Kg2 {[%emt 0:00:09]} Qd7 {[%emt 0:00:09]} 25. h4 {[%emt 0:00:38]} Rfc8 {[%emt 0:00:14]} 26. Qe2 {[%emt 0:00:02]} Rc4 {[%emt 0:00:17]} 27. Rad1 {[%emt 0:00:09]} R4c6 {[%emt 0:00:09]} 28. Nh2 {[%emt 0:00:05]} g6 {[%emt 0:00:31]} 29. Ng4 {[%emt 0:00:19]} Bg7 {[%emt 0:00:01]} 30. Qf3 {[%emt 0:00:28]} Qd8 {[%emt 0:00:01]} 31. Qe3 {[%emt 0:00:01]} Qf8 {[%emt 0:00:14]} 32. Qf4 {[%emt 0:00:14]} Be8 {[%emt 0:00:11]} 33. Qf3 {[%emt 0:00:23]} h6 {[%emt 0:00:03]} 34. Kg1 {[%emt 0:00:26]} g5 {[%emt 0:00:04]} 35. Ne3 {[%emt 0:00:31]} gxh4 {[%emt 0:00:32]} 36. gxh4 {[%emt 0:00:08]} Kh8 {[%emt 0:00:05]} 37. Kh2 {[%emt 0:00:07]} h5 {[%emt 0:00:07]} 38. Rg1 {[%emt 0:00:05]} Bh6 {[%emt 0:00:01]} 39. Rg2 {[%emt 0:00:16]} R8c7 {[%emt 0:00:06]} 40. Rdg1 {[%emt 0:00:02]} Rg7 {[%emt 0:00:02]} 41. Rxg7 {[%emt 0:00:16]} Bxg7 {[%emt 0:00:00]} 42. Ne2 {[%emt 0:00:10]} Bh6 {[%emt 0:00:24]} 43. Kh1 {[%emt 0:00:07]} Rc7 {[%emt 0:00:11]} 44. Nf4 {[%emt 0:00:02]} Bxf4 {[%emt 0:00:10]} 45. Qxf4 {[%emt 0:00:01]} Rg7 {[%emt 0:00:01]} 46. Rxg7 {[%emt 0:00:24]} Qxg7 {[%emt 0:00:01]} 47. Qb8 {[%emt 0:00:01]} Qg6 {[%emt 0:00:00]} 48. Kh2 {[%emt 0:00:03]} Kg7 {[%emt 0:00:04]} 49. Qxb6 {[%emt 0:00:02]} Qe4 {[%emt 0:00:03]} 50. Qc7+ {[%emt 0:00:01]} Kh6 {[%emt 0:00:01]} 51. Ng2 {[%emt 0:00:12]} Qxd4 {[%emt 0:00:04]} 52. Qe7 {[%emt 0:00:00]} Qe5+ {[%emt 0:00:04]} 53. f4 {[%emt 0:00:02]} Qxb2 {[%emt 0:00:02]} 54. Qxe8 {[%emt 0:00:01]} Qe2 {[%emt 0:00:01]} 55. Qh8+ {[%emt 0:00:02]} Kg6 {[%emt 0:00:01]} 56. Qg8+ {[%emt 0:00:00]} Kh6 {[%emt 0:00:05]} 57. Qf7 {[%emt 0:00:03]} 1-0

[Event "CCT Julius Baer-D3 2024"]
[Site "Online"]
[Date "2024.09.27"]
[Round "1.3"]
[White "Bosiocic"]
[Black "Svane, Rasmus"]
[Result "1-0"]
[ECO "C65"]
[WhiteElo "2615"]
[BlackElo "2644"]
[Annotator "ChessBase"]
[PlyCount "83"]
[EventDate "2024.09.25"]
[EventType "swiss"]
[EventCountry "NET"]
[SourceTitle "playchess.com"]
[Source "ChessBase"]
[SourceQuality "1"]
[TimeControl "600+2"]

1. e4 {[%emt 0:00:02]} e5 {[%emt 0:00:05]} 2. Nf3 {[%emt 0:00:01]} Nc6 {[%emt 0:00:00]} 3. Bb5 {[%emt 0:00:02]} Nf6 {[%emt 0:00:01]} 4. d3 {[%emt 0:00:02]} Bc5 {[%emt 0:00:02]} 5. Bg5 {[%emt 0:00:00]} h6 {[%emt 0:00:02]} 6. Bh4 {[%emt 0:00:02]} O-O {[%emt 0:00:01]} 7. Nc3 {[%emt 0:00:04]} Re8 {[%emt 0:02:22]} 8. Qd2 {[%emt 0:00:53]} a6 {[%emt 0:00:46]} 9. Ba4 {[%emt 0:00:10]} b5 {[%emt 0:00:04]} 10. Bb3 {[%emt 0:00:01]} Be7 {[%emt 0:00:45]} 11. g4 {[%emt 0:03:09]} Nxe4 {[%emt 0:01:23]} 12. Nxe4 {[%emt 0:00:03]} Bxh4 {[%emt 0:00:02]} 13. Bd5 {[%emt 0:00:01]} Rb8 {[%emt 0:02:17]} 14. g5 {[%emt 0:00:03]} Bxg5 {[%emt 0:00:03]} 15. Nfxg5 {[%emt 0:00:02]} hxg5 {[%emt 0:00:01]} 16. Nxg5 {[%emt 0:00:01]} Rf8 {[%emt 0:00:09]} 17. Qe3 {[%emt 0:00:17]} Nb4 {[%emt 0:01:07]} 18. Bb3 {[%emt 0:00:18]} d5 {[%emt 0:00:01]} 19. Rg1 {[%emt 0:00:23]} Rb6 {[%emt 0:00:34]} 20. O-O-O {[%emt 0:00:24]} Rh6 {[%emt 0:00:07]} 21. a3 {[%emt 0:01:14]} Nc6 {[%emt 0:00:05]} 22. c3 {[%emt 0:00:38]} Rh5 {[%emt 0:00:29]} 23. Rg3 {[%emt 0:00:14]} g6 {[%emt 0:00:02]} 24. Rdg1 {[%emt 0:00:06]} Kh8 {[%emt 0:00:09]} 25. Qf3 {[%emt 0:00:08]} Qe7 {[%emt 0:00:09]} 26. Bxd5 {[%emt 0:00:31]} Nd8 {[%emt 0:00:01]} 27. Kb1 {[%emt 0:00:02]} Bf5 {[%emt 0:00:03]} 28. Ka1 {[%emt 0:00:41]} c6 {[%emt 0:00:01]} 29. Be4 {[%emt 0:00:02]} Bxe4 {[%emt 0:00:01]} 30. Nxe4 {[%emt 0:00:05]} Ne6 {[%emt 0:00:01]} 31. Nf6 {[%emt 0:00:16]} Rh6 {[%emt 0:00:00]} 32. Rh3 {[%emt 0:00:01]} Rxh3 {[%emt 0:00:02]} 33. Qxh3+ {[%emt 0:00:02]} Kg7 {[%emt 0:00:01]} 34. Nh5+ {[%emt 0:00:12]} Kg8 {[%emt 0:00:00]} 35. Qe3 {[%emt 0:00:10]} Rd8 {[%emt 0:00:08]} 36. Qxe5 {[%emt 0:00:02]} Qc5 {[%emt 0:00:04]} 37. Rxg6+ {[%emt 0:00:16]} fxg6 {[%emt 0:00:03]} 38. Qxe6+ {[%emt 0:00:01]} Kh7 {[%emt 0:00:01]} 39. Qf7+ {[%emt 0:00:13]} Kh6 {[%emt 0:00:01]} 40. Nf6 {[%emt 0:00:04]} Rf8 {[%emt 0:00:02]} 41. Qh7+ {[%emt 0:00:02]} Kg5 {[%emt 0:00:01]} 42. Ne4+ {[%emt 0:00:00]} 1-0

[Event "CCT Julius Baer-D3 2024"]
[Site "Online"]
[Date "2024.09.27"]
[Round "1.3"]
[White "Kamsky, Gata"]
[Black "Esipenko, Andrey"]
[Result "1/2-1/2"]
[ECO "C78"]
[WhiteElo "2609"]
[BlackElo "2677"]
[Annotator "TA"]
[PlyCount "107"]
[EventDate "2024.09.25"]
[EventType "swiss"]
[EventCountry "NET"]
[SourceTitle "playchess.com"]
[Source "ChessBase"]
[SourceQuality "1"]
[TimeControl "600+2"]

{[%evp 19,107,24,43,0,0,0,0,0,0,0,5,0,0,0,19,17,11,0,0,0,0,0,0,0,0,0,0,0,0,0,0,0,0,0,0,0,0,0,0,0,0,-6,-6,-96,0,0,0,0,0,0,0,0,0,0,0,0,0,0,0,0,0,0,0,0,0,0,0,0,0,0,0,0,0,0,0,0,0,0,0,0,0,0,0,0,0,0,0,0,0,0]} 1. e4 {[%emt 0:00:04]} e5 {[%emt 0:00:03]} 2. Nf3 {[%emt 0:00:01]} Nc6 {[%emt 0:00:02]} 3. Bb5 {[%emt 0:00:01]} a6 {[%emt 0:00:03]} 4. Ba4 {[%emt 0:00:01]} Nf6 {[%emt 0:00:02]} 5. O-O {[%emt 0:00:01]} b5 {[%emt 0:00:00]} 6. Bb3 {[%emt 0:00:01]} Bc5 {[%emt 0:00:01]} 7. a4 {[%emt 0:00:22]} Rb8 {[%emt 0:00:02]} 8. axb5 {[%emt 0:00:02]} axb5 {[%emt 0:00:04]} 9. c3 {[%emt 0:00:01]} d6 {[%emt 0:00:07]} 10. d4 {[%emt 0:00:02]} Bb6 {[%emt 0:00:01]} 11. h3 {[%emt 0:00:03]} O-O {[%emt 0:00:20]} 12. Be3 {[%emt 0:00:08]} h6 {[%emt 0:00:39]} 13. Nbd2 {[%emt 0:00:06]} Re8 {[%emt 0:00:03]} 14. Re1 {[%emt 0:00:06]} exd4 {[%emt 0:00:15]} 15. cxd4 {[%emt 0:00:08]} Nb4 {[%emt 0:00:04][%cal Oc7c5]} 16. d5 {[%emt 0:00:04]} c5 {[%emt 0:00:48][%cal Ob4d3]} 17. dxc6 {[%emt 0:00:03][%cal Ob3f7] [#] Bxf7+! would now be deadly.} Nxc6 {[%emt 0:00:01]} 18. Bxb6 {[%emt 0:02:41]} Qxb6 {[%emt 0:02:48]} 19. Qe2 {[%emt 0:01:04]} Be6 {[%emt 0:00:22]} 20. Bxe6 {[%emt 0:00:16]} Rxe6 {[%emt 0:00:00]} 21. Qe3 {[%emt 0:00:03]} Qxe3 {[%emt 0:01:04]} 22. Rxe3 {[%emt 0:00:04]} d5 {[%emt 0:00:01][%cal Rd5e4]} 23. Rae1 {[%emt 0:01:38]} dxe4 {[%emt 0:00:14]} 24. Nxe4 {[%emt 0:00:03]} Nd5 {[%emt 0:00:02]} 25. Rd3 {[%emt 0:00:13]} Nf4 {[%emt 0:00:11]} (25... Ncb4 $5 26. Rdd1 $8 Nf4 $11) 26. Rde3 {[%emt 0:00:12]} Nb4 {[%emt 0:00:21] [#] ...Nc2 is the strong threat.} 27. Nc3 {[%emt 0:00:14]} Nbd3 {[%emt 0:00:35] Threatens to win with ...b4.} 28. Rxe6 {[%emt 0:00:26]} Nxe6 {[%emt 0:00:00]} 29. Rd1 {[%emt 0:00:20]} Nec5 {[%emt 0:00:01][%cal Ob5b4]} (29... Nxb2 $5 30. Rb1 $8 Nd3 $14) 30. b4 {[%emt 0:00:10]} Nxb4 {[%emt 0:00:01] Strongly threatening ...Nbd3.} 31. Rb1 {[%emt 0:00:02]} (31. Nd4 $11 {keeps the balance.}) 31... Ncd3 {[%emt 0:00:04]} ({Better is} 31... Na4 $1 $17 32. g3 Nxc3 33. Rxb4 Nd5) 32. Nd4 {[%emt 0:00:01] The position is equal.} Rc8 {[%emt 0:00:14]} 33. Ncxb5 {[%emt 0:00:07]} Rc4 {[%emt 0:00:21]} 34. g3 {[%emt 0:00:06]} g6 {[%emt 0:00:12]} 35. h4 {[%emt 0:00:10]} h5 {[%emt 0:00:33]} 36. Kf1 {[%emt 0:00:09]} Rc8 {[%emt 0:00:11]} 37. Nd6 {[%emt 0:00:11]} Ra8 {[%emt 0:00:09]} 38. Nf3 {[%emt 0:00:17]} Ra2 {[%emt 0:00:20]} 39. Ne4 {[%emt 0:00:02]} Kg7 {[%emt 0:00:08]} 40. Ned2 {[%emt 0:00:02]} f6 {[%emt 0:00:07]} 41. Ke2 {[%emt 0:00:03]} Ra5 {[%emt 0:00:08]} 42. Ke3 {[%emt 0:00:05]} Ra8 {[%emt 0:00:10]} 43. Ke2 {[%emt 0:00:01]} Ra7 {[%emt 0:00:04]} 44. Kf1 {[%emt 0:00:03]} Ra2 {[%emt 0:00:03]} 45. Ke2 {[%emt 0:00:02]} Kh6 {[%emt 0:00:02]} 46. Ke3 {[%emt 0:00:03]} Ra8 {[%emt 0:00:10]} 47. Ke2 {[%emt 0:00:03]} Ra7 {[%emt 0:00:02]} 48. Kf1 {[%emt 0:00:03]} Ra2 {[%emt 0:00:01]} 49. Ke2 {[%emt 0:00:02]} g5 {[%emt 0:00:01]} 50. hxg5+ {[%emt 0:00:03]} fxg5 {[%emt 0:00:00]} 51. Ke3 {[%emt 0:00:19]} g4 {[%emt 0:00:09]} 52. Nd4 {[%emt 0:00:04]} Ra3 {[%emt 0:00:06] Hoping for ...Nd5+.} 53. Rb3 {[%emt 0:00:03]} Rxb3 {[%emt 0:00:03]} 54. N2xb3 {[%emt 0:00:03] Weighted Error Value: White=0.04 (flawless) /Black=0.03 (flawless) .  Mistake:       	White=1     	Black=1      OK:         	White=24    	Black=13} 1/2-1/2